{"text_format":"1","workbook":"xlsx","n_sheets":2,"sheets":["Risk Calculation","Risk Results"],"not_rendered":{"charts":1,"images":2,"macros":1,"external_links":0,"defined_names":0,"comments":0,"pivot_tables":0},"unopened":[],"bounds":{"document_bytes":16777216,"sheet_cells":100000,"rows_first":2000,"rows_last":500,"rows_between":2000,"halvings":0,"cell_chars":16384,"cell_head_chars":4096},"cells_cut":0,"cells_raw":0,"read":"whole","date_system":"1900"}

{"sheet":"Risk Calculation","index":0,"n_rows":53,"n_cols":30,"rows_kept":53,"cut":false,"hidden":false,"merged":[[20,0,20,6],[9,0,9,6],[10,0,10,6],[11,0,11,6],[12,0,12,6],[13,0,13,6],[14,0,14,6],[15,0,15,6],[16,0,16,6],[17,0,17,6],[18,0,18,6],[19,0,19,6],[21,0,21,6],[22,0,22,6],[25,0,25,6],[26,0,26,6],[27,0,27,6],[37,0,37,6],[38,0,38,6],[39,0,39,6],[24,0,24,6],[30,0,30,6],[29,0,29,6],[31,0,31,6],[32,0,32,6],[33,0,33,6],[34,0,34,6],[28,0,28,6],[52,0,52,6],[41,0,41,6],[42,0,42,6],[47,0,47,6],[43,0,43,6],[44,0,44,6],[45,0,45,6],[46,0,46,6],[7,27,8,29],[8,0,8,6],[7,12,8,14],[7,17,8,19],[7,22,8,24],[35,9,38,9],[43,9,46,9],[48,9,51,9],[7,7,8,9],[0,0,0,6],[10,9,12,9],[14,9,17,9],[19,9,22,9],[25,9,28,9],[30,9,33,9],[48,0,48,6],[49,0,49,6],[50,0,50,6],[51,0,51,6],[35,0,35,6],[36,0,36,6],[43,14,46,14],[48,14,51,14],[10,19,12,19],[14,19,17,19],[19,19,22,19],[25,19,28,19],[30,19,33,19],[35,19,38,19],[43,19,46,19],[48,19,51,19],[10,14,12,14],[14,14,17,14],[19,14,22,14],[25,14,28,14],[30,14,33,14],[35,14,38,14],[43,24,46,24],[48,24,51,24],[10,29,12,29],[14,29,17,29],[19,29,22,29],[25,29,28,29],[30,29,33,29],[35,29,38,29],[43,29,46,29],[48,29,51,29],[10,24,12,24],[14,24,17,24],[19,24,22,24],[25,24,28,24],[30,24,33,24],[35,24,38,24]]}
["Semi-Quantitative Risk Characterization Tool"]
["Name of Assay or SOP:"]
["Section:"]
["Location:"]
["Assessor(s):"]
["Supervisor:"]
["Biosafety Officer:",null,null,null,null,null,null,"Risk #1",null,null,null,null,"Risk #2",null,null,null,null,"Risk #3",null,null,null,null,"Risk #4",null,null,null,null,"Risk #5"]
["Date:",null,null,null,null,null,null,"Insert risk here",null,null,null,null,"Insert risk here",null,null,null,null,"Insert risk here",null,null,null,null,"Insert risk here",null,null,null,null,"Insert risk here"]
["Likelihood Factor Criteria"]
["Hazard Exposure Characteristics (20%)",null,null,null,null,null,null,"Raw Score","Weighted Score","Notes",null,null,"Raw Score","Weighted Score","Notes",null,null,"Raw Score","Weighted Score","Notes",null,null,"Raw Score","Weighted Score","Notes",null,null,"Raw Score","Weighted Score","Notes"]
["The hazard is extremely fragile and has poor transmissibility",null,null,null,null,null,null,null,null,"Insert notes here",null,null,null,null,"Insert notes here",null,null,null,null,"Insert notes here",null,null,null,null,"Insert notes here",null,null,null,null,"Insert notes here"]
["The hazard is moderately stable and/or has moderate transmissibility"]
["The hazard is very stable with strong transmissibility, or its stability/transmissibility is unknown"]
["Staff Training and Competency (20%)",null,null,null,null,null,null,"Raw Score",null,"Notes",null,null,"Raw Score",null,"Notes",null,null,"Raw Score",null,"Notes",null,null,"Raw Score","Weighted Score","Notes",null,null,"Raw Score","Weighted Score","Notes"]
["All staff are highly trained and competent for the specific activity",null,null,null,null,null,null,null,null,"Insert notes here",null,null,null,null,"Insert notes here",null,null,null,null,"Insert notes here",null,null,null,null,"Insert notes here",null,null,null,null,"Insert notes here"]
["Most staff are highly trained and competent; a few are moderately trained"]
["Few staff are highly trained and competent; most are moderately trained"]
["Most or all staff are poorly trained and/or not competent for the specific activity"]
["Engineering Controls (15%)",null,null,null,null,null,null,"Raw Score",null,"Notes",null,null,"Raw Score",null,"Notes",null,null,"Raw Score",null,"Notes",null,null,"Raw Score","Weighted Score","Notes",null,null,"Raw Score","Weighted Score","Notes"]
["All required engineering controls are in place, properly certified, and maintained",null,null,null,null,null,null,null,null,"Insert notes here",null,null,null,null,"Insert notes here",null,null,null,null,"Insert notes here",null,null,null,null,"Insert notes here",null,null,null,null,"Insert notes here"]
["Most required engineering controls are in place, properly certified, and maintained"]
["Few/most required engineering controls are in place; some of those are not properly certified or maintained"]
["Few/no required engineering controls are in place; some/all of those are not properly certified or maintained"]
[]
["Administrative Controls (15%)",null,null,null,null,null,null,"Raw Score",null,"Notes",null,null,"Raw Score",null,"Notes",null,null,"Raw Score",null,"Notes",null,null,"Raw Score","Weighted Score","Notes",null,null,"Raw Score","Weighted Score","Notes"]
["All necessary administrative controls are in place and appropriately maintained",null,null,null,null,null,null,null,null,"Insert notes here",null,null,null,null,"Insert notes here",null,null,null,null,"Insert notes here",null,null,null,null,"Insert notes here",null,null,null,null,"Insert notes here"]
["Most necessary administrative controls are in place and appropriately maintained"]
["Few/most necessary administrative controls are in place; some of those are not properly maintained"]
["Few/no necessary administrative controls are in place; some/all of those are not properly maintained"]
["Procedural Controls (15%)",null,null,null,null,null,null,"Raw Score",null,"Notes",null,null,"Raw Score",null,"Notes",null,null,"Raw Score",null,"Notes",null,null,"Raw Score","Weighted Score","Notes",null,null,"Raw Score","Weighted Score","Notes"]
["All necessary procedural controls are in place and appropriately maintained",null,null,null,null,null,null,null,null,"Insert notes here",null,null,null,null,"Insert notes here",null,null,null,null,"Insert notes here",null,null,null,null,"Insert notes here",null,null,null,null,"Insert notes here"]
["Most necessary procedural controls are in place and appropriately maintained"]
["Few/most necessary procedural controls are in place; some of those are not properly maintained"]
["Few/no necessary procedural controls are in place; some/all of those are not properly maintained"]
["Personal Protective Equipment (PPE) (15%)",null,null,null,null,null,null,"Raw Score",null,"Notes",null,null,"Raw Score",null,"Notes",null,null,"Raw Score",null,"Notes",null,null,"Raw Score","Weighted Score","Notes",null,null,"Raw Score","Weighted Score","Notes"]
["All necessary PPE is in use and appropriately maintained",null,null,null,null,null,null,null,null,"Insert notes here",null,null,null,null,"Insert notes here",null,null,null,null,"Insert notes here",null,null,null,null,"Insert notes here",null,null,null,null,"Insert notes here"]
["Most necessary PPE is in use and appropriately maintained"]
["Few/most necessary PPE is in use; some of those are not properly maintained"]
["Few/no necessary PPE is in use; some/all of those are not properly maintained"]
["TOTAL LIKELIHOOD SCORE",null,null,null,null,null,null,null,{"$f":"SUM(I11:I39)","v":0},null,null,null,null,{"$f":"SUM(N11:N39)","v":0},null,null,null,null,{"$f":"SUM(S11:S39)","v":0},null,null,null,null,{"$f":"SUM(X11:X39)","v":0},null,null,null,null,{"$f":"SUM(AC11:AC39)","v":0}]
[]
["Consequence Factor Criteria"]
["Hazard Severity Characteristics (80%)",null,null,null,null,null,null,"Raw Score","Weighted Score","Notes",null,null,"Raw Score",null,"Notes",null,null,"Raw Score",null,"Notes",null,null,"Raw Score","Weighted Score","Notes",null,null,"Raw Score","Weighted Score","Notes"]
["Exposure to the hazard would not cause any morbidity or mortality",null,null,null,null,null,null,null,null,"Insert notes here",null,null,null,null,"Insert notes here",null,null,null,null,"Insert notes here",null,null,null,null,"Insert notes here",null,null,null,null,"Insert notes here"]
["Exposure to the hazard could cause morbidity primarily in immunocompromised or elderly individuals"]
["Exposure to the hazard could cause serious morbidity but limited mortality"]
["Exposure to the hazard would result in high rates of morbidity and mortality"]
["Vaccines and Therapeutics (20%)",null,null,null,null,null,null,"Raw Score",null,"Notes",null,null,"Raw Score",null,"Notes",null,null,"Raw Score",null,"Notes",null,null,"Raw Score","Weighted Score","Notes",null,null,"Raw Score","Weighted Score","Notes"]
["Highly effective vaccines and therapies are available, and all staff are vaccinated against this disease",null,null,null,null,null,null,null,null,"Insert notes here",null,null,null,null,"Insert notes here",null,null,null,null,"Insert notes here",null,null,null,null,"Insert notes here",null,null,null,null,"Insert notes here"]
["Highly effective vaccines and/or therapies are available, but only some staff are vaccinated against this disease"]
["Vaccines and/or therapies are available, but their efficacy is limited"]
["No vaccines or therapies are available for the disease caused by this hazard"]
["TOTAL CONSEQUENCE SCORE",null,null,null,null,null,null,null,{"$f":"SUM(I44:I52)","v":0},null,null,null,null,{"$f":"SUM(N44:N52)","v":0},null,null,null,null,{"$f":"SUM(S44:S52)","v":0},null,null,null,null,{"$f":"SUM(X44:X52)","v":0},null,null,null,null,{"$f":"SUM(AC44:AC52)","v":0}]

{"sheet":"Risk Results","index":1,"n_rows":16,"n_cols":5,"rows_kept":16,"cut":false,"hidden":false,"merged":[[6,1,6,6],[9,1,9,8],[0,0,0,6],[1,1,1,6],[2,1,2,6],[3,1,3,6],[4,1,4,6],[5,1,5,6],[7,1,7,6]]}
["Semi-Quantitative Risk Characterization Tool - Results"]
["Name of Assay or SOP:",{"$f":"IF('Risk Calculation'!B2=\"\",\"\",'Risk Calculation'!B2)","v":""}]
["Section:",{"$f":"IF('Risk Calculation'!B3=\"\",\"\",'Risk Calculation'!B3)","v":""}]
["Location:",{"$f":"IF('Risk Calculation'!B4=\"\",\"\",'Risk Calculation'!B4)","v":""}]
["Assessor(s):",{"$f":"IF('Risk Calculation'!B5=\"\",\"\",'Risk Calculation'!B5)","v":""}]
["Supervisor:",{"$f":"IF('Risk Calculation'!B6=\"\",\"\",'Risk Calculation'!B6)","v":""}]
["Biosafety Officer:",{"$f":"IF('Risk Calculation'!B7=\"\",\"\",'Risk Calculation'!B7)","v":""}]
["Date:",{"$f":"IF('Risk Calculation'!B8=\"\",\"\",'Risk Calculation'!B8)","v":""}]
[]
[null,"Risk Results:"]
[null,"Risk #","Total Likelihood Score","Total Consequence Score","Description"]
[null,1,{"$f":"'Risk Calculation'!I40","v":0},{"$f":"'Risk Calculation'!I53","v":0},{"$f":"'Risk Calculation'!H8","v":"Insert risk here"}]
[null,2,{"$f":"'Risk Calculation'!N40","v":0},{"$f":"'Risk Calculation'!N53","v":0},{"$f":"'Risk Calculation'!M8","v":"Insert risk here"}]
[null,3,{"$f":"'Risk Calculation'!S40","v":0},{"$f":"'Risk Calculation'!S53","v":0},{"$f":"'Risk Calculation'!R8","v":"Insert risk here"}]
[null,4,{"$f":"'Risk Calculation'!X40","v":0},{"$f":"'Risk Calculation'!X53","v":0},{"$f":"'Risk Calculation'!W8","v":"Insert risk here"}]
[null,5,{"$f":"'Risk Calculation'!AC40","v":0},{"$f":"'Risk Calculation'!AC53","v":0},{"$f":"'Risk Calculation'!AB8","v":"Insert risk here"}]